[Event "Titled Tuesday Blitz July 26 Late 2022"]
[White "Jacobson, Brandon"]
[Black "Oparin, Grigoriy"]
[WhiteFideId "30901561"]
[BlackFideId "24125890"]
[WhiteElo "2362"]
[BlackElo "2639"]
[Result "0-1"]
[Round "08"]
[TimeControl "180+1"]
[Date "2022.07.26"]
[WhiteClock "0:01:39"]
[BlackClock "0:01:40"]

1. d4 {[%clk 0:03:00]}  Nf6 {[%clk 0:03:00]} 2. c4 {[%clk 0:03:01]}  e6 {[%clk 0:03:01]} 3. Nc3 {[%clk 0:03:02]}  Bb4 {[%clk 0:03:01]} 4. e3 {[%clk 0:03:02]}  O-O {[%clk 0:03:01]} 5. Bd3 {[%clk 0:03:03]}  d5 {[%clk 0:02:57]} 6. cxd5 {[%clk 0:02:51]}  exd5 {[%clk 0:02:57]} 7. Ne2 {[%clk 0:02:51]}  Re8 {[%clk 0:02:49]} 8. Bd2 {[%clk 0:02:52]}  c5 {[%clk 0:02:42]} 9. a3 {[%clk 0:02:49]}  Bxc3 {[%clk 0:02:41]} 10. Nxc3 {[%clk 0:02:50]}  cxd4 {[%clk 0:02:37]} 11. Ne2 {[%clk 0:02:48]}  dxe3 {[%clk 0:02:31]} 12. Bxe3 {[%clk 0:02:49]}  Nc6 {[%clk 0:02:31]} 13. O-O {[%clk 0:02:44]}  Bg4 {[%clk 0:02:32]} 14. Qd2 {[%clk 0:02:37]}  Bxe2 {[%clk 0:02:23]} 15. Bxe2 {[%clk 0:02:35]}  d4 {[%clk 0:02:24]} 16. Bf4 {[%clk 0:02:27]}  Ne4 {[%clk 0:02:21]} 17. Qd1 {[%clk 0:02:19]}  Qf6 {[%clk 0:02:18]} 18. g3 {[%clk 0:02:17]}  Rad8 {[%clk 0:02:16]} 19. Bf3 {[%clk 0:02:15]}  d3 {[%clk 0:02:11]} 20. Re1 {[%clk 0:02:15]}  Qd4 {[%clk 0:01:55]} 21. Bxe4 {[%clk 0:02:01]}  Rxe4 {[%clk 0:01:55]} 22. Qd2 {[%clk 0:02:02]}  h6 {[%clk 0:01:47]} 23. Rxe4 {[%clk 0:02:01]}  Qxe4 {[%clk 0:01:48]} 24. Re1 {[%clk 0:02:02]}  Qd5 {[%clk 0:01:43]} 25. Qd1 {[%clk 0:01:39]}  Nd4 {[%clk 0:01:40]} 0-1


[Site "https://www.chess.com"]

[Event "Titled Tuesday Blitz July 26 Late 2022"]
[White "Jarocka, Liwia"]
[Black "Zanette, Edgard Vinicius"]
[WhiteFideId "21807558"]
[BlackFideId "2109263"]
[WhiteElo "1840"]
[BlackElo "2182"]
[Result "1/2-1/2"]
[Round "08"]
[TimeControl "180+1"]
[Date "2022.07.27"]
[WhiteClock "0:00:32"]
[BlackClock "0:00:08"]

1. e4 {[%clk 0:03:00]}  c5 {[%clk 0:02:59]} 2. Nf3 {[%clk 0:02:58]}  d6 {[%clk 0:02:57]} 3. d4 {[%clk 0:02:56]}  cxd4 {[%clk 0:02:58]} 4. Nxd4 {[%clk 0:02:56]}  Nf6 {[%clk 0:02:58]} 5. Nc3 {[%clk 0:02:56]}  a6 {[%clk 0:02:57]} 6. Be3 {[%clk 0:02:56]}  e5 {[%clk 0:02:56]} 7. Nb3 {[%clk 0:02:56]}  Be7 {[%clk 0:02:56]} 8. f3 {[%clk 0:02:56]}  h5 {[%clk 0:02:56]} 9. Qd2 {[%clk 0:02:56]}  Be6 {[%clk 0:02:55]} 10. Nd5 {[%clk 0:02:55]}  Nxd5 {[%clk 0:02:46]} 11. exd5 {[%clk 0:02:56]}  Bf5 {[%clk 0:02:46]} 12. O-O-O {[%clk 0:02:55]}  Qc7 {[%clk 0:02:44]} 13. Bd3 {[%clk 0:02:54]}  Bxd3 {[%clk 0:02:42]} 14. Qxd3 {[%clk 0:02:55]}  Nd7 {[%clk 0:02:41]} 15. Kb1 {[%clk 0:02:53]}  Rc8 {[%clk 0:02:34]} 16. Rc1 {[%clk 0:02:37]}  Qc4 {[%clk 0:02:25]} 17. Rhd1 {[%clk 0:02:33]}  Qxd3 {[%clk 0:02:24]} 18. Rxd3 {[%clk 0:02:33]}  f5 {[%clk 0:02:21]} 19. c4 {[%clk 0:02:30]}  b6 {[%clk 0:02:20]} 20. f4 {[%clk 0:02:15]}  O-O {[%clk 0:01:55]} 21. Rd2 {[%clk 0:02:10]}  Bf6 {[%clk 0:01:51]} 22. g3 {[%clk 0:02:07]}  Rfe8 {[%clk 0:01:40]} 23. fxe5 {[%clk 0:02:04]}  Bxe5 {[%clk 0:01:38]} 24. Bg1 {[%clk 0:02:01]}  f4 {[%clk 0:01:33]} 25. Rd3 {[%clk 0:01:54]}  Nc5 {[%clk 0:01:27]} 26. Nxc5 {[%clk 0:01:49]}  bxc5 {[%clk 0:01:26]} 27. gxf4 {[%clk 0:01:45]}  Bxf4 {[%clk 0:01:24]} 28. Rf1 {[%clk 0:01:45]}  Be5 {[%clk 0:01:17]} 29. b3 {[%clk 0:01:43]}  Rf8 {[%clk 0:01:16]} 30. Rdf3 {[%clk 0:01:41]}  Rxf3 {[%clk 0:01:16]} 31. Rxf3 {[%clk 0:01:42]}  Rf8 {[%clk 0:01:16]} 32. Rxf8+ {[%clk 0:01:41]}  Kxf8 {[%clk 0:01:17]} 33. Kc2 {[%clk 0:01:42]}  Kf7 {[%clk 0:01:16]} 34. Kd3 {[%clk 0:01:42]}  g5 {[%clk 0:01:11]} 35. h3 {[%clk 0:01:42]}  Kf6 {[%clk 0:01:07]} 36. Ke4 {[%clk 0:01:41]}  g4 {[%clk 0:01:05]} 37. hxg4 {[%clk 0:01:39]}  hxg4 {[%clk 0:01:05]} 38. a3 {[%clk 0:01:36]}  Bb2 {[%clk 0:00:42]} 39. Kf4 {[%clk 0:01:22]}  Bxa3 {[%clk 0:00:41]} 40. Kxg4 {[%clk 0:01:22]}  Bc1 {[%clk 0:00:37]} 41. Kf3 {[%clk 0:01:21]}  Bb2 {[%clk 0:00:32]} 42. Ke3 {[%clk 0:01:21]}  Be5 {[%clk 0:00:33]} 43. Kd3 {[%clk 0:01:21]}  Kf5 {[%clk 0:00:30]} 44. Be3 {[%clk 0:01:18]}  Kg4 {[%clk 0:00:29]} 45. Ke4 {[%clk 0:01:16]}  Bh2 {[%clk 0:00:26]} 46. Bd2 {[%clk 0:01:15]}  Be5 {[%clk 0:00:21]} 47. Ba5 {[%clk 0:01:14]}  Bh2 {[%clk 0:00:20]} 48. Bc3 {[%clk 0:01:10]}  Bg3 {[%clk 0:00:19]} 49. Bf6 {[%clk 0:01:01]}  Bh2 {[%clk 0:00:18]} 50. Be7 {[%clk 0:00:58]}  Bg3 {[%clk 0:00:17]} 51. Kd3 {[%clk 0:00:58]}  Kf3 {[%clk 0:00:16]} 52. Bf6 {[%clk 0:00:56]}  Bh2 {[%clk 0:00:14]} 53. Kc3 {[%clk 0:00:54]}  Ke4 {[%clk 0:00:10]} 54. Be7 {[%clk 0:00:52]}  Be5+ {[%clk 0:00:08]} 55. Kc2 {[%clk 0:00:52]}  Kd4 {[%clk 0:00:05]} 56. Bf8 {[%clk 0:00:50]}  Bf6 {[%clk 0:00:03]} 57. Bh6 {[%clk 0:00:49]}  Be5 {[%clk 0:00:02]} 58. Bd2 {[%clk 0:00:49]}  Ke4 {[%clk 0:00:03]} 59. Ba5 {[%clk 0:00:44]}  Bf4 {[%clk 0:00:03]} 60. Bc3 {[%clk 0:00:41]}  Bg3 {[%clk 0:00:04]} 61. b4 {[%clk 0:00:40]}  cxb4 {[%clk 0:00:02]} 62. Bxb4 {[%clk 0:00:41]}  Kd4 {[%clk 0:00:02]} 63. Kb3 {[%clk 0:00:41]}  Kd3 {[%clk 0:00:02]} 64. Ba3 {[%clk 0:00:39]}  Kd4 {[%clk 0:00:01]} 65. Bb2+ {[%clk 0:00:38]}  Kd3 {[%clk 0:00:02]} 66. Bg7 {[%clk 0:00:28]}  Bf4 {[%clk 0:00:02]} 67. Bb2 {[%clk 0:00:28]}  Bg3 {[%clk 0:00:02]} 68. Ba3 {[%clk 0:00:28]}  Bf4 {[%clk 0:00:02]} 69. Bb4 {[%clk 0:00:27]}  Be5 {[%clk 0:00:02]} 70. c5 {[%clk 0:00:27]}  dxc5 {[%clk 0:00:01]} 71. Bxc5 {[%clk 0:00:27]}  Ke4 {[%clk 0:00:02]} 72. d6 {[%clk 0:00:27]}  Bxd6 {[%clk 0:00:02]} 73. Bxd6 {[%clk 0:00:27]}  Kd5 {[%clk 0:00:03]} 74. Ba3 {[%clk 0:00:27]}  Kc6 {[%clk 0:00:04]} 75. Ka4 {[%clk 0:00:28]}  Kb6 {[%clk 0:00:04]} 76. Bb4 {[%clk 0:00:29]}  Kb7 {[%clk 0:00:05]} 77. Ba5 {[%clk 0:00:30]}  Ka8 {[%clk 0:00:06]} 78. Bb4 {[%clk 0:00:30]}  Kb7 {[%clk 0:00:07]} 79. Ba5 {[%clk 0:00:31]}  Ka8 {[%clk 0:00:07]} 80. Bb4 {[%clk 0:00:32]}  Kb7 {[%clk 0:00:08]} 1/2-1/2


[Site "https://www.chess.com"]

[Event "Titled Tuesday Blitz July 26 Late 2022"]
[White "Katz, Alexander"]
[Black "Petrovic, Aleksa"]
[WhiteFideId "2039796"]
[BlackFideId "967629"]
[WhiteElo "2386"]
[BlackElo "2185"]
[Result "0-1"]
[Round "08"]
[TimeControl "180+1"]
[Date "2022.07.27"]
[WhiteClock "0:00:03"]
[BlackClock "0:00:04"]

1. d4 {[%clk 0:02:48]}  e6 {[%clk 0:02:56]} 2. c4 {[%clk 0:02:46]}  Nf6 {[%clk 0:02:55]} 3. Nf3 {[%clk 0:02:44]}  b6 {[%clk 0:02:55]} 4. g3 {[%clk 0:02:43]}  Ba6 {[%clk 0:02:55]} 5. b3 {[%clk 0:02:43]}  d5 {[%clk 0:02:54]} 6. Bg2 {[%clk 0:02:26]}  Bb4+ {[%clk 0:02:49]} 7. Bd2 {[%clk 0:02:24]}  Bd6 {[%clk 0:02:49]} 8. Qc2 {[%clk 0:02:20]}  O-O {[%clk 0:02:46]} 9. O-O {[%clk 0:02:20]}  Nbd7 {[%clk 0:02:44]} 10. a4 {[%clk 0:02:04]}  dxc4 {[%clk 0:02:15]} 11. bxc4 {[%clk 0:02:04]}  Bb7 {[%clk 0:02:10]} 12. Nc3 {[%clk 0:02:01]}  Bb4 {[%clk 0:02:03]} 13. Rad1 {[%clk 0:01:52]}  c5 {[%clk 0:01:48]} 14. Bg5 {[%clk 0:01:42]}  Bxc3 {[%clk 0:01:40]} 15. Qxc3 {[%clk 0:01:35]}  Ne4 {[%clk 0:01:39]} 16. Qe3 {[%clk 0:01:28]}  Nxg5 {[%clk 0:01:34]} 17. Nxg5 {[%clk 0:01:27]}  Bxg2 {[%clk 0:01:33]} 18. Kxg2 {[%clk 0:01:28]}  h6 {[%clk 0:01:15]} 19. dxc5 {[%clk 0:01:18]}  Qc8 {[%clk 0:00:44]} 20. Ne4 {[%clk 0:00:40]}  f5 {[%clk 0:00:42]} 21. Nd6 {[%clk 0:00:34]}  Qc6+ {[%clk 0:00:39]} 22. f3 {[%clk 0:00:30]}  Nxc5 {[%clk 0:00:39]} 23. Nb5 {[%clk 0:00:28]}  Rfd8 {[%clk 0:00:32]} 24. Nd4 {[%clk 0:00:25]}  Qxa4 {[%clk 0:00:25]} 25. Rc1 {[%clk 0:00:16]}  Qe8 {[%clk 0:00:20]} 26. Rfd1 {[%clk 0:00:14]}  Rd7 {[%clk 0:00:20]} 27. Nb5 {[%clk 0:00:13]}  Rad8 {[%clk 0:00:19]} 28. Rxd7 {[%clk 0:00:12]}  Qxd7 {[%clk 0:00:20]} 29. Ra1 {[%clk 0:00:10]}  a5 {[%clk 0:00:19]} 30. Qe5 {[%clk 0:00:10]}  Qf7 {[%clk 0:00:15]} 31. h4 {[%clk 0:00:10]}  Qf6 {[%clk 0:00:14]} 32. Qc7 {[%clk 0:00:09]}  Rd7 {[%clk 0:00:14]} 33. Qc8+ {[%clk 0:00:08]}  Kh7 {[%clk 0:00:14]} 34. Rf1 {[%clk 0:00:08]}  Rd2 {[%clk 0:00:14]} 35. Rf2 {[%clk 0:00:08]}  Qe5 {[%clk 0:00:13]} 36. Kf1 {[%clk 0:00:04]}  Qa1+ {[%clk 0:00:07]} 37. Kg2 {[%clk 0:00:04]}  Qe1 {[%clk 0:00:07]} 38. Qc6 {[%clk 0:00:02]}  Rxe2 {[%clk 0:00:06]} 39. Rxe2 {[%clk 0:00:03]}  Qxe2+ {[%clk 0:00:07]} 40. Kg1 {[%clk 0:00:03]}  Nd3 {[%clk 0:00:06]} 41. Qxb6 {[%clk 0:00:03]}  Qxf3 {[%clk 0:00:05]} 42. Kh2 {[%clk 0:00:01]}  Qe2+ {[%clk 0:00:04]} 43. Kg1 {[%clk 0:00:02]}  Qf3 {[%clk 0:00:04]} 44. Kh2 {[%clk 0:00:02]}  Ne1 {[%clk 0:00:04]} 45. Qg1 {[%clk 0:00:02]}  Qe2+ {[%clk 0:00:04]} 46. Kh3 {[%clk 0:00:02]}  Qg4+ {[%clk 0:00:03]} 47. Kh2 {[%clk 0:00:03]}  Nf3+ {[%clk 0:00:04]} 0-1


[Site "https://www.chess.com"]

[Event "Titled Tuesday Blitz July 26 Late 2022"]
[White "Kopczynski, Michal"]
[Black "Wu, Rochelle"]
[WhiteFideId "1124200"]
[BlackFideId "30908132"]
[WhiteElo "2235"]
[BlackElo "2168"]
[Result "0-1"]
[Round "08"]
[TimeControl "180+1"]
[Date "2022.07.26"]
[WhiteClock "0:00:08"]
[BlackClock "0:00:32"]

1. e4 {[%clk 0:03:00]}  g6 {[%clk 0:02:58]} 2. d4 {[%clk 0:03:01]}  Bg7 {[%clk 0:02:59]} 3. Nc3 {[%clk 0:03:01]}  c6 {[%clk 0:02:58]} 4. Be3 {[%clk 0:03:02]}  d5 {[%clk 0:02:59]} 5. e5 {[%clk 0:03:01]}  h5 {[%clk 0:02:55]} 6. Qd2 {[%clk 0:03:01]}  Nh6 {[%clk 0:02:54]} 7. f3 {[%clk 0:03:00]}  Nf5 {[%clk 0:02:52]} 8. Bf2 {[%clk 0:02:58]}  Bh6 {[%clk 0:02:50]} 9. f4 {[%clk 0:02:58]}  b6 {[%clk 0:02:40]} 10. Bd3 {[%clk 0:02:57]}  Qc7 {[%clk 0:02:30]} 11. Nge2 {[%clk 0:02:55]}  a6 {[%clk 0:02:29]} 12. h3 {[%clk 0:02:42]}  Bg7 {[%clk 0:02:19]} 13. O-O-O {[%clk 0:02:37]}  h4 {[%clk 0:02:18]} 14. Qe1 {[%clk 0:02:30]}  b5 {[%clk 0:02:12]} 15. Bxf5 {[%clk 0:02:28]}  Bxf5 {[%clk 0:02:12]} 16. Bxh4 {[%clk 0:02:29]}  b4 {[%clk 0:02:10]} 17. g4 {[%clk 0:02:19]}  Bxc2 {[%clk 0:01:40]} 18. Kxc2 {[%clk 0:02:14]}  bxc3 {[%clk 0:01:38]} 19. Nxc3 {[%clk 0:02:12]}  Nd7 {[%clk 0:01:37]} 20. e6 {[%clk 0:02:00]}  fxe6 {[%clk 0:01:33]} 21. Bg5 {[%clk 0:01:55]}  Kf7 {[%clk 0:01:07]} 22. Qe2 {[%clk 0:01:48]}  c5 {[%clk 0:00:59]} 23. Rhe1 {[%clk 0:01:43]}  Qc6 {[%clk 0:00:55]} 24. dxc5 {[%clk 0:01:38]}  Nxc5 {[%clk 0:00:54]} 25. f5 {[%clk 0:00:49]}  d4 {[%clk 0:00:48]} 26. fxg6+ {[%clk 0:00:31]}  Ke8 {[%clk 0:00:40]} 27. Qf2 {[%clk 0:00:19]}  Rf8 {[%clk 0:00:37]} 28. Qh4 {[%clk 0:00:12]}  dxc3 {[%clk 0:00:33]} 29. Bxe7 {[%clk 0:00:12]}  Qg2+ {[%clk 0:00:31]} 30. Kb1 {[%clk 0:00:08]}  Qxb2# {[%clk 0:00:32]} 0-1


[Site "https://www.chess.com"]

[Event "Titled Tuesday Blitz July 26 Late 2022"]
[White "Korchmar, Vasiliy"]
[Black "Sivakumar, Shaashwath"]
[WhiteFideId "24131750"]
[BlackFideId "30912156"]
[WhiteElo "2370"]
[BlackElo "1823"]
[Result "1-0"]
[Round "08"]
[TimeControl "180+1"]
[Date "2022.07.26"]
[WhiteClock "0:01:31"]
[BlackClock "0:00:29"]

1. e4 {[%clk 0:03:00]}  c5 {[%clk 0:02:59]} 2. Nf3 {[%clk 0:03:00]}  d6 {[%clk 0:03:00]} 3. d4 {[%clk 0:03:00]}  cxd4 {[%clk 0:03:01]} 4. Nxd4 {[%clk 0:03:01]}  Nf6 {[%clk 0:03:01]} 5. Nc3 {[%clk 0:03:02]}  a6 {[%clk 0:03:02]} 6. f3 {[%clk 0:03:01]}  e5 {[%clk 0:02:59]} 7. Nb3 {[%clk 0:03:01]}  Be6 {[%clk 0:02:58]} 8. Be3 {[%clk 0:03:01]}  h5 {[%clk 0:02:58]} 9. Qd2 {[%clk 0:03:02]}  Nbd7 {[%clk 0:02:57]} 10. Nd5 {[%clk 0:02:57]}  Bxd5 {[%clk 0:02:57]} 11. exd5 {[%clk 0:02:58]}  Be7 {[%clk 0:02:57]} 12. Na5 {[%clk 0:02:51]}  Qc7 {[%clk 0:02:55]} 13. c4 {[%clk 0:02:48]}  O-O {[%clk 0:02:54]} 14. Be2 {[%clk 0:02:46]}  e4 {[%clk 0:02:54]} 15. f4 {[%clk 0:02:42]}  Rfe8 {[%clk 0:02:47]} 16. O-O {[%clk 0:02:42]}  Bf8 {[%clk 0:02:35]} 17. b4 {[%clk 0:02:42]}  Rac8 {[%clk 0:02:31]} 18. Rac1 {[%clk 0:02:41]}  h4 {[%clk 0:02:03]} 19. Qe1 {[%clk 0:02:36]}  h3 {[%clk 0:02:03]} 20. g4 {[%clk 0:02:37]}  g6 {[%clk 0:01:53]} 21. Qh4 {[%clk 0:02:35]}  Bg7 {[%clk 0:01:52]} 22. Qxh3 {[%clk 0:02:35]}  Nb8 {[%clk 0:01:18]} 23. g5 {[%clk 0:02:35]}  Nfd7 {[%clk 0:01:18]} 24. f5 {[%clk 0:02:36]}  gxf5 {[%clk 0:00:59]} 25. Rxf5 {[%clk 0:02:34]}  Nf8 {[%clk 0:01:00]} 26. Rcf1 {[%clk 0:02:33]}  Re7 {[%clk 0:00:59]} 27. Nb3 {[%clk 0:02:05]}  Ng6 {[%clk 0:00:54]} 28. Nd4 {[%clk 0:01:50]}  Ne5 {[%clk 0:00:40]} 29. R5f4 {[%clk 0:01:42]}  Nf3+ {[%clk 0:00:35]} 30. Bxf3 {[%clk 0:01:31]}  exf3 {[%clk 0:00:36]} 31. Nf5 {[%clk 0:01:31]}  Rxe3 {[%clk 0:00:29]} 32. Nxe3 {[%clk 0:01:32]}  Qe7 {[%clk 0:00:29]} 33. Qxc8+ {[%clk 0:01:31]} 1-0


[Site "https://www.chess.com"]

[Event "Titled Tuesday Blitz July 26 Late 2022"]
[White "Kozin, Yuri"]
[Black "Sanchez Alarcon, Juan"]
[WhiteFideId "4129920"]
[BlackFideId "3401332"]
[WhiteElo "2545"]
[BlackElo "2164"]
[Result "1-0"]
[Round "08"]
[TimeControl "180+1"]
[Date "2022.07.27"]
[WhiteClock "0:00:29"]
[BlackClock "0:01:46"]

1. e4 {[%clk 0:03:00]}  c5 {[%clk 0:02:58]} 2. Nf3 {[%clk 0:03:00]}  d6 {[%clk 0:02:58]} 3. d4 {[%clk 0:03:01]}  cxd4 {[%clk 0:02:57]} 4. Nxd4 {[%clk 0:01:28]}  Nf6 {[%clk 0:02:55]} 5. Nc3 {[%clk 0:01:29]}  a6 {[%clk 0:02:53]} 6. Be3 {[%clk 0:01:28]}  e6 {[%clk 0:02:51]} 7. f4 {[%clk 0:01:28]}  Nc6 {[%clk 0:02:49]} 8. Bd3 {[%clk 0:01:28]}  Qc7 {[%clk 0:02:47]} 9. Qf3 {[%clk 0:01:27]}  Be7 {[%clk 0:02:46]} 10. Nb3 {[%clk 0:01:27]}  b5 {[%clk 0:02:41]} 11. O-O-O {[%clk 0:01:27]}  Bb7 {[%clk 0:02:41]} 12. Kb1 {[%clk 0:01:24]}  Rc8 {[%clk 0:02:41]} 13. g4 {[%clk 0:01:24]}  Nb4 {[%clk 0:02:32]} 14. g5 {[%clk 0:01:10]}  Nd7 {[%clk 0:02:31]} 15. Rc1 {[%clk 0:01:08]}  O-O {[%clk 0:02:20]} 16. h4 {[%clk 0:01:07]}  d5 {[%clk 0:02:13]} 17. h5 {[%clk 0:00:51]}  dxe4 {[%clk 0:02:12]} 18. Bxe4 {[%clk 0:00:48]}  Bxe4 {[%clk 0:02:10]} 19. Qxe4 {[%clk 0:00:38]}  Nb6 {[%clk 0:02:09]} 20. h6 {[%clk 0:00:35]}  g6 {[%clk 0:02:09]} 21. Qd4 {[%clk 0:00:33]}  e5 {[%clk 0:01:54]} 22. Qxb6 {[%clk 0:00:34]}  Qxb6 {[%clk 0:01:53]} 23. Bxb6 {[%clk 0:00:35]}  exf4 {[%clk 0:01:53]} 24. Rhg1 {[%clk 0:00:35]}  Nc6 {[%clk 0:01:49]} 25. Rce1 {[%clk 0:00:34]}  Bd6 {[%clk 0:01:48]} 26. Nd4 {[%clk 0:00:33]}  Ne5 {[%clk 0:01:46]} 27. Nd5 {[%clk 0:00:29]} 1-0


[Site "https://www.chess.com"]

[Event "Titled Tuesday Blitz July 26 Late 2022"]
[White "Leiva, Gianmarco"]
[Black "Sarana, Alexey"]
[WhiteFideId "3804399"]
[BlackFideId "24133795"]
[WhiteElo "2323"]
[BlackElo "2666"]
[Result "0-1"]
[Round "08"]
[TimeControl "180+1"]
[Date "2022.07.26"]
[WhiteClock "0:00:02"]
[BlackClock "0:00:15"]

1. d4 {[%clk 0:02:59]}  Nf6 {[%clk 0:03:00]} 2. Nf3 {[%clk 0:03:00]}  d5 {[%clk 0:02:59]} 3. Bf4 {[%clk 0:03:00]}  c5 {[%clk 0:02:59]} 4. e3 {[%clk 0:02:59]}  Nc6 {[%clk 0:03:00]} 5. Nbd2 {[%clk 0:02:57]}  Qb6 {[%clk 0:03:00]} 6. dxc5 {[%clk 0:02:57]}  Qxb2 {[%clk 0:03:00]} 7. Rb1 {[%clk 0:02:57]}  Qa3 {[%clk 0:03:01]} 8. Bb5 {[%clk 0:02:56]}  g6 {[%clk 0:03:01]} 9. c4 {[%clk 0:02:46]}  Bg7 {[%clk 0:03:00]} 10. Ne5 {[%clk 0:02:32]}  Qxc5 {[%clk 0:02:46]} 11. Nb3 {[%clk 0:02:12]}  Qb6 {[%clk 0:02:44]} 12. a4 {[%clk 0:01:59]}  O-O {[%clk 0:02:10]} 13. c5 {[%clk 0:01:53]}  Qd8 {[%clk 0:02:02]} 14. Nxc6 {[%clk 0:01:47]}  bxc6 {[%clk 0:02:03]} 15. Bxc6 {[%clk 0:01:48]}  Bf5 {[%clk 0:02:00]} 16. Bxa8 {[%clk 0:01:43]}  Bxb1 {[%clk 0:02:00]} 17. Bb7 {[%clk 0:00:58]}  Be4 {[%clk 0:01:34]} 18. O-O {[%clk 0:00:56]}  Nh5 {[%clk 0:01:35]} 19. Bg5 {[%clk 0:00:51]}  Qc7 {[%clk 0:01:00]} 20. c6 {[%clk 0:00:46]}  Be5 {[%clk 0:01:00]} 21. f4 {[%clk 0:00:37]}  Bd6 {[%clk 0:00:44]} 22. Nd4 {[%clk 0:00:37]}  Qb6 {[%clk 0:00:43]} 23. Qb3 {[%clk 0:00:18]}  Qc5 {[%clk 0:00:39]} 24. Qb2 {[%clk 0:00:14]}  Qa5 {[%clk 0:00:34]} 25. Nb5 {[%clk 0:00:07]}  Bc5 {[%clk 0:00:17]} 26. c7 {[%clk 0:00:07]}  Bf5 {[%clk 0:00:16]} 27. Qc1 {[%clk 0:00:02]}  Qb6 {[%clk 0:00:15]} 0-1


[Site "https://www.chess.com"]

[Event "Titled Tuesday Blitz July 26 Late 2022"]
[White "Martinez, Shawn"]
[Black "Gulecyuz, Deniz"]
[WhiteFideId "2039770"]
[BlackFideId "30921341"]
[WhiteElo "2174"]
[BlackElo "1923"]
[Result "1-0"]
[Round "08"]
[TimeControl "180+1"]
[Date "2022.07.27"]
[WhiteClock "0:00:08"]
[BlackClock "0:00:05"]

1. e4 {[%clk 0:03:00]}  c5 {[%clk 0:02:54]} 2. Nc3 {[%clk 0:03:00]}  Nc6 {[%clk 0:02:53]} 3. Bb5 {[%clk 0:02:59]}  e6 {[%clk 0:02:48]} 4. Bxc6 {[%clk 0:02:56]}  bxc6 {[%clk 0:02:48]} 5. d3 {[%clk 0:02:56]}  d5 {[%clk 0:02:44]} 6. f4 {[%clk 0:02:55]}  Be7 {[%clk 0:02:38]} 7. Nf3 {[%clk 0:02:54]}  Nf6 {[%clk 0:02:38]} 8. O-O {[%clk 0:02:52]}  O-O {[%clk 0:02:38]} 9. Qe1 {[%clk 0:02:47]}  c4 {[%clk 0:02:38]} 10. d4 {[%clk 0:02:29]}  dxe4 {[%clk 0:02:23]} 11. Nxe4 {[%clk 0:02:28]}  Nxe4 {[%clk 0:02:24]} 12. Qxe4 {[%clk 0:02:28]}  Qd5 {[%clk 0:02:24]} 13. Re1 {[%clk 0:02:20]}  Qxe4 {[%clk 0:02:03]} 14. Rxe4 {[%clk 0:02:19]}  Bd6 {[%clk 0:01:51]} 15. Ne5 {[%clk 0:02:14]}  Bb7 {[%clk 0:01:45]} 16. Nxc4 {[%clk 0:02:10]}  Bc7 {[%clk 0:01:44]} 17. Re1 {[%clk 0:02:05]}  Rfd8 {[%clk 0:01:33]} 18. Be3 {[%clk 0:02:03]}  Ba6 {[%clk 0:01:12]} 19. Ne5 {[%clk 0:01:49]}  Bxe5 {[%clk 0:01:11]} 20. dxe5 {[%clk 0:01:46]}  Bc4 {[%clk 0:01:04]} 21. b3 {[%clk 0:01:44]}  Bd5 {[%clk 0:01:04]} 22. Rad1 {[%clk 0:01:42]}  a5 {[%clk 0:00:58]} 23. c4 {[%clk 0:01:23]}  Be4 {[%clk 0:00:51]} 24. Bb6 {[%clk 0:01:08]}  Rxd1 {[%clk 0:00:51]} 25. Rxd1 {[%clk 0:01:08]}  a4 {[%clk 0:00:49]} 26. Rd8+ {[%clk 0:00:47]}  Rxd8 {[%clk 0:00:48]} 27. Bxd8 {[%clk 0:00:48]}  axb3 {[%clk 0:00:46]} 28. axb3 {[%clk 0:00:49]}  c5 {[%clk 0:00:38]} 29. Be7 {[%clk 0:00:25]}  Bc2 {[%clk 0:00:35]} 30. b4 {[%clk 0:00:23]}  cxb4 {[%clk 0:00:34]} 31. Bxb4 {[%clk 0:00:23]}  Bb3 {[%clk 0:00:35]} 32. c5 {[%clk 0:00:21]}  Bd5 {[%clk 0:00:35]} 33. g3 {[%clk 0:00:20]}  f6 {[%clk 0:00:35]} 34. exf6 {[%clk 0:00:18]}  gxf6 {[%clk 0:00:36]} 35. Kf2 {[%clk 0:00:18]}  Kf7 {[%clk 0:00:35]} 36. Ke3 {[%clk 0:00:18]}  f5 {[%clk 0:00:31]} 37. Kd4 {[%clk 0:00:18]}  Kf6 {[%clk 0:00:22]} 38. Ba5 {[%clk 0:00:18]}  Ke7 {[%clk 0:00:09]} 39. Ke5 {[%clk 0:00:16]}  Ba8 {[%clk 0:00:09]} 40. Bc7 {[%clk 0:00:15]}  Bc6 {[%clk 0:00:09]} 41. Bd6+ {[%clk 0:00:15]}  Kf7 {[%clk 0:00:09]} 42. Bb8 {[%clk 0:00:13]}  Ke7 {[%clk 0:00:10]} 43. Bd6+ {[%clk 0:00:14]}  Kf7 {[%clk 0:00:10]} 44. h4 {[%clk 0:00:13]}  h5 {[%clk 0:00:09]} 45. Bc7 {[%clk 0:00:11]}  Bd5 {[%clk 0:00:10]} 46. Kd6 {[%clk 0:00:10]}  Ke8 {[%clk 0:00:09]} 47. Ba5 {[%clk 0:00:09]}  Ba8 {[%clk 0:00:07]} 48. c6 {[%clk 0:00:09]}  Kf7 {[%clk 0:00:06]} 49. c7 {[%clk 0:00:08]}  Bb7 {[%clk 0:00:07]} 50. Kd7 {[%clk 0:00:09]}  Kf6 {[%clk 0:00:05]} 51. Bc3+ {[%clk 0:00:08]} 1-0


[Site "https://www.chess.com"]